Workbook

Sheet Sheet1
E2: WAGE BUREAU ESTIMATE
E3: 60 MONTHS
B4: UoM | E4: QTY /MONTH | F4: MONTH | G4: QTY 60 Months | H4: RATE | I4: Contract Amount
A5: DE-ESCALATION
A6: 1.1 License fees
A8: 1.1.1 License Fees | B8: Rands | E8: 1 | F8: 60 | G8: =E8*F8 -> 60
A11: 1.2 Hardware and hosting
A13: Hardware | B13: No | E13: 1 | F13: 60 | G13: =E13*F13 -> 60
A14: Hosting servers | B14: No | E14: 1 | F14: 60 | G14: =E14*F14 -> 60
A15: Infrastructure support | B15: No | E15: 1 | F15: 60 | G15: =E15*F15 -> 60
A16: ='[1]1.2 Hardware and Hosting'!M32 -> Secure offline backups | B16: No | E16: 1 | F16: 60 | G16: =E16*F16 -> 60
A18: 1.3 Support cost
A20: 1.3.1 Data issues | B20: Hours | E20: =[1]Symplexity!$L$3 -> 145.14 | F20: 60 | G20: =E20*F20 -> 8708.40
A22: 1.3.3 Base support (SLA)
A23: - Service Provider | B23: Hours | E23: =[1]Symplexity!$F$4 -> 381.04 | F23: 60 | G23: =E23*F23 -> 22862.40
A24: - Time & Attendance Service | B24: Hours | E24: =[1]TDS!$F$3 -> 138.56 | F24: 60 | G24: =E24*F24 -> 8313.60
A26: 1.3.3a Additional support (SLA) for SSPs and SSA enhancements | B26: Hours | E26: =[1]Symplexity!$L$9 -> 74.04 | F26: 60 | G26: =E26*F26 -> 4442.40
A28: 1.3.4 Improve ability to verify claims | B28: Hours | E28: =[1]Symplexity!$F$5 -> 138.56 | F28: 60 | G28: =E28*F28 -> 8313.60
A30: 1.3.6 Time and attendance data collection
A31: - Service Provider | B31: Hours | E31: =[1]Symplexity!$L$7 -> 98.23 | F31: 60 | G31: =E31*F31 -> 5893.80
A32: - Time & Attendance Service | B32: Hours | E32: =[1]TDS!$K$4 -> 1204.76 | F32: 60 | G32: =E32*F32 -> 72285.50
A34: 1.3.7 Project management
A35: - Service Provider | B35: Hours | E35: =[1]Symplexity!$L$6 -> 88.36 | F35: 60 | G35: =E35*F35 -> 5301.75
A36: - Time & Attendance Service | B36: Hours | E36: =[1]TDS!$K$5 -> 51.62 | F36: 60 | G36: =E36*F36 -> 3097.20
A38: 1.3.8 Business analysts for data collection and data analysis
A39: - BA's | B39: Hours | E39: ='[1]BA''s'!$E$8 -> 536.92 | F39: 60 | G39: =E39*F39 -> 32215.20
A40: - Senior Business Analyst 1 | B40: Hours | E40: ='[1]BA''s'!$E$16 -> 415.68 | F40: 60 | G40: =E40*F40 -> 24940.80
A41: - Senior Business Analyst 2 | B41: Hours | E41: ='[1]BA''s'!$K$21 -> 277.85 | F41: 60 | G41: =E41*F41 -> 16670.77
A43: 1.3.11 Interface developer / programmers
A44: - Service Provider | B44: Hours | E44: =[1]Symplexity!$L$8 -> 69.32 | F44: 60 | G44: =E44*F44 -> 4159.35
A45: - Time & Attendance Service | B45: Hours | E45: =[1]TDS!$K$6 -> 55.08 | F45: 60 | G45: =E45*F45 -> 3305.10
A47: 1.3.15 Fix biometric devices | B47: Rands | E47: 1 | F47: 60 | G47: =E47*F47 -> 60.00
A49: 1.4 Travel and subsistence
A51: 1.4.1 Travel & Subsistence | B51: Rands | E51: 1 | F51: 60 | G51: =E51*F51 -> 60.00
A53: 1.5 Improve network quality
A55: 1.5.1 Improve network quality | B55: Rands | E55: 1 | F55: 60 | G55: =E55*F55 -> 60.00
A57: Total Cost
